Cogmind - Beta 13 @@@ ROGUE MODE // 2024.03.31 @ 13:55:59 Player: Yovador Result: Destroyed by Autobeam Turret with Autobeam Performance ------------- Evolutions (0) 0 Regions Visited (2) 400 Robots Destroyed (30) 150 Value Destroyed (676) 676 Prototype IDs (0) 0 Alien Tech Used (0) 0 Bonus (0) 0 TOTAL SCORE: 1226 Bonus ------- None Cogmind --------- Core Integrity 0/250 Matter 22/300 Energy 100/100 System Corruption 0% Temperature Cool (18) Movement Treading (160) Location -10/Subcaves Parts ------- > --- POWER (1) -------- (None) > --- PROPULSION (2) --- Improved Treads Improved Treads > --- UTILITY (2) ------ Small Storage Unit Signal Interpreter > --- WEAPON (2) ------- Battle Cannon Mining Claw > --- INVENTORY (8) ---- Improved Treads Visual Processing Unit Medium Armor Plating Heavy EM Pulse Gun Assault Rifle Mini Grenade Launcher Peak State ------------ > --- POWER ------------ Light Ion Engine > --- PROPULSION ------- Improved Treads Improved Treads > --- UTILITY ---------- Small Storage Unit Signal Interpreter > --- WEAPON ----------- Heavy EM Pulse Gun Mini Grenade Launcher > --- INVENTORY -------- Improved Treads Improved Treads Visual Processing Unit Medium Armor Plating Assault Rifle Mining Claw [Rating: 12] Favorites ----------- Power Light Ion Engine Engine Light Ion Engine Propulsion Improved Treads Treads Improved Treads Utility Small Storage Unit Storage Small Storage Unit Processor Signal Interpreter Weapon EM Pulse Gun Energy Gun EM Pulse Gun Ballistic Cannon Battle Cannon Launcher Mini Grenade Launcher Slashing Weapon Mining Claw Build | -11 -10 -10 ------- Run | Yrd Mat Sub Slots Evolved . | . . . Power . | . . . Propulsion . | . . . Utility . | . . . Weapon . | . . . Parts Attached 25 | 6 8 11 Power 2 | 1 . 1 Engine 2 | 1 . 1 Core . | . . . Reactor . | . . . Propulsion 6 | 2 2 2 Treads 6 | 2 2 2 Leg . | . . . Wheel . | . . . Hover . | . . . Flight . | . . . Utility 2 | 1 1 . Device . | . . . Storage 1 | 1 . . Processor 1 | . 1 . Hackware . | . . . Protection . | . . . Artifact . | . . . Weapon 15 | 2 5 8 Energy Gun 6 | 2 2 2 Energy Cannon . | . . . Ballistic Gun . | . . . Ballistic Cannon 1 | . . 1 Launcher 6 | . 3 3 Special Weapon . | . . . Impact Weapon . | . . . Slashing Weapon 2 | . . 2 Piercing Weapon . | . . . Special Melee Weapon . | . . . Unidentified Prototypes . | . . . Parts Lost 4 | . 2 2 Power 2 | . 1 1 Propulsion 1 | . . 1 Utility . | . . . Weapon 1 | . 1 . Highest Loss Streak 2 | . 1 2 To Critical Strikes . | . . . Average Slot Usage (%) 94 | . 90 99 Engine 10 | . 7 13 Treads 27 | . 27 27 Storage 14 | . 14 14 Processor 13 | . 12 14 Energy Gun 16 | . 20 10 Ballistic Cannon 5 | . . 13 Launcher 5 | . 7 1 Naked Turns . | . . . Heaviest Build 14 | 12 13 14 Greatest Support 46 | 40 46 46 Greatest Overweight (x) . | . . . Average Overweight (x) . | . . . Largest Inventory Capacity 8 | 8 8 8 Average Capacity 7 | 7 8 8 Most Carried 8 | 4 8 7 Average Carried 6 | 2 6 6 Final Capacity 8 | 8 8 8 Final Carried 7 | 4 7 6 Class Distribution -------------------- 100% | Mutant Dominant Class ---------------- Mutant | -10/Materials Mutant | -10/Subcaves Resources | -11 -10 -10 ----------- Run | Yrd Mat Sub Matter Collected 482 | 143 292 47 Remotely . | . . . Salvage Created 830 | . 698 132 Parts 68 | . 58 10 Haulers Intercepted . | . . . Recyclers Shooed 3 | . 3 . Parts Field Recycled . | . . . Retrieved Matter . | . . . Parts Self-Destructed 11 | . . 11 Prevented 1 | . . 1 Kills | -11 -10 -10 ------- Run | Yrd Mat Sub Combat Hostiles Destroyed 18 | . 11 7 Guns 9 | . 7 2 Cannons 3 | . . 3 AOE 6 | . 4 2 Classes Destroyed 8 | . 5 3 Worker 4 | . 4 . Builder 3 | . 3 . Recycler 1 | . 1 . Turret 1 | . . 1 Watcher 3 | . 3 . Swarmer 4 | . . 4 Grunt 11 | . 11 . Subdweller 3 | . . 3 Best Kill Streak 11 | . 11 4 Combat Bots Only 4 | . 4 4 Max Kills in Single Turn 2 | . 2 1 Gunslinging . | . . . Exploded 1 | . 1 1 Melee . | . . . Uniques/NPCs Destroyed . | . . . Combat | -11 -10 -10 -------- Run | Yrd Mat Sub Hostile Shots Fired 203 | . 47 156 Missed 81 | . 19 62 Damage Taken 1155 | . 496 659 Core 254 | . 125 129 Absorbed by Shields . | . . . Core Remaining (%) 100 | 100 . . Volleys Fired 67 | . 35 32 Largest 2 | . 2 2 Hottest 84 | . 80 84 Shots Fired 116 | . 60 56 Gun 69 | . 50 19 Cannon 29 | . . 29 Launcher 18 | . 10 8 Special . | . . . Kinetic 29 | . . 29 Thermal . | . . . Explosive 18 | . 10 8 Electromagnetic 69 | . 50 19 Robot Hit Streak 8 | . 8 4 Robot Miss Streak 3 | . 3 3 Penetration Max . | . . . Secondary Targets . | . . . Shots Hit Robots 53 | . 35 18 Core Hits 48 | . 36 12 Critical Kills . | . . . Critical Parts Destroyed . | . . . Critical Strikes 3 | . 2 1 Blast 1 | . . 1 Corrupt 2 | . 2 . Melee Attacks 2 | . . 2 Impact . | . . . Slashing 2 | . . 2 Piercing . | . . . Sneak Attacks . | . . . Combat Hostiles . | . . . Follow-up Attacks . | . . . Damage Inflicted 1765 | . 1134 631 Guns 509 | . 445 64 Cannons 190 | . . 190 Explosions 1041 | . 689 352 Melee 25 | . . 25 Ramming . | . . . Kinetic 190 | . . 190 Thermal 130 | . 130 . Explosive 911 | . 559 352 Electromagnetic 509 | . 445 64 Impact . | . . . Slashing 25 | . . 25 Piercing . | . . . Highest Corruption . | . . . Average Corruption . | . . . Corruption Purged . | . . . Corruption Blocked . | . . . Overload Shots . | . . . Overflow Damage 12 | . 12 . Projectiles . | . . . Explosions 12 | . 12 . Melee . | . . . Knockbacks 1 | . . 1 Impact . | . . . Kinetic 1 | . . 1 Secondary . | . . . Self-Inflicted Damage 140 | . 140 . Shots 5 | . 5 . Rammed . | . . . Targets Rammed . | . . . Kicked . | . . . Crushed . | . . . Highest Temperature 168 | . 168 13 Average Temperature 38 | . 39 10 Received Heat Transfer 648 | . 201 447 Siege Activations . | . . . Robots Corrupted . | . . . Combat Hostiles . | . . . Parts Fried 2 | . 1 1 Impact Corruptions . | . . . Robots Melted . | . . . Combat Hostiles . | . . . Parts Melted . | . . . Heat Transferred 100 | . 100 . Parts Sabotaged . | . . . Parts Stolen . | . . . Parts Stripped . | . . . Power Chain Reactions 2 | . 2 . Alert | -11 -10 -10 ------- Run | Yrd Mat Sub Peak Influence 236 | . 236 . Initial . | . . . Average 97 | . 104 . Maximum Alert Level 1 | . 1 . Low Security (%) 79 | 100 78 . Level 1 20 | . 21 . Level 2 . | . . . Level 3 . | . . . Level 4 . | . . . Level 5 . | . . . High Security . | . . . Max Security . | . . . Squads Dispatched 3 | . 3 . Investigation 3 | . 3 . Extermination . | . . . Reinforcement . | . . . Assault . | . . . Garrison . | . . . Intercept . | . . . Searches Triggered . | . . . Construction Impeded . | . . . Haulers Reinforced . | . . . Active Scanning Responses . | . . . Cargo Convoy Interrupts . | . . . Stealth | -11 -10 -10 --------- Run | Yrd Mat Sub Distress Signals 2 | . 2 . Communications Jammed . | . . . Distress Signals . | . . . Times Spotted 100 | . 18 82 Peak Tracking Total 4 | . 4 4 Tactical Retreats 8 | . 2 6 Traps | -11 -10 -10 ------- Run | Yrd Mat Sub Traps Triggered 2 | . 2 . Indirectly . | . . . Trap Hack Attempts . | . . . Triggered . | . . . Disarmed . | . . . Reprogrammed 4 | . 4 . Reused 3 | . 3 . Traps Extracted . | . . . Installed . | . . . Triggered 3 | . 3 . Machines | -11 -10 -10 ---------- Run | Yrd Mat Sub Machines Disabled 3 | . . 3 Max in Single Turn 1 | . . 1 Machines Repaired . | . . . Machines Dismantled . | . . . Machines Sabotaged . | . . . Overloaded Fab Kills . | . . . Hacking | -11 -10 -10 --------- Run | Yrd Mat Sub Machines Accessed 3 | . 3 . Terminals 3 | . 3 . Fabricators . | . . . Repair Stations . | . . . Recycling Units . | . . . Scanalyzers . | . . . Garrison Access . | . . . Total Hacks 11 | . 11 . Successful 4 | . 4 . Failed 7 | . 7 . Catastrophic . | . . . Database Lockouts . | . . . Manual . | . . . Terminals 11 | . 11 . Fabricators . | . . . Repair Stations . | . . . Recycling Units . | . . . Scanalyzers . | . . . Garrison Access . | . . . Terminal Hacks 4 | . 4 . Emergency Access Points 1 | . 1 . Alert Level 1 | . 1 . Reprogram Traps 1 | . 1 . Zone Layout 1 | . 1 . Fabricator Hacks . | . . . Repair Station Hacks . | . . . Recycling Unit Hacks . | . . . Scanalyzer . | . . . Garrison Access Hacks . | . . . Unauthorized Hacks . | . . . Terminals . | . . . Fabricators . | . . . Repair Stations . | . . . Recycling Units . | . . . Scanalyzers . | . . . Garrison Access . | . . . Data Cores Recovered . | . . . Used . | . . . Hacking Detections 3 | . 3 . Full Trace Events 2 | . 2 . Feedback Events . | . . . Feedback Blocked . | . . . Robot Schematics Acquired . | . . . Robots Built . | . . . Authchips . | . . . Time . | . . . Total Robot Build Rating . | . . . Part Schematics Acquired . | . . . Parts Built . | . . . Authchips . | . . . Time . | . . . Total Part Build Rating . | . . . Parts Repaired . | . . . Time . | . . . Parts Recycled . | . . . Recycled Matter . | . . . Retrieved Matter . | . . . Retrieved Components . | . . . Parts Scanalyzed . | . . . Part Schematics Acquired . | . . . Parts Damaged . | . . . Bothacking | -11 -10 -10 ------------ Run | Yrd Mat Sub Used RIF Installer . | . . . Robots Hacked . | . . . Non-combat . | . . . Combat . | . . . Robot Hacks Applied . | . . . Relay Couplers Released . | . . . Fabnet Peak Effective % . | . . . Robots Rewired . | . . . Allies Hacked . | . . . Hacks Repelled . | . . . Allies | -11 -10 -10 -------- Run | Yrd Mat Sub Total Allies . | . . . Largest Group . | . . . Highest-Rated Group . | . . . Highest-Rated Ally . | . . . Total Orders . | . . . Ally Attacks . | . . . Total Damage . | . . . Kills . | . . . Allies Corrupted . | . . . Allies Melted . | . . . Intel | -11 -10 -10 ------- Run | Yrd Mat Sub Robot Analysis Total . | . . . Derelict Logs Recovered 1 | . . 1 Drone Launches . | . . . Drone Recoveries . | . . . Exploration | -11 -10 -10 ------------- Run | Yrd Mat Sub Turns Passed 2094 | 92 1226 776 Spaces Moved 1148 | 46 687 415 Core 4 | 4 . . Treads 1144 | 42 687 415 Legs . | . . . Wheels . | . . . Hover . | . . . Flight . | . . . Fastest Speed 50 | 50 160 160 Average Speed 159 | 150 160 160 Slowest Speed 160 | 160 160 160 Overloaded Moves . | . . . Propulsion Burnouts . | . . . Robots Hopped . | . . . Cave-ins Triggered . | . . . Exploration Rate (%) 37 | 4 86 23 Regions Visited 2 Branch Regions 1 Pre-discovered Areas 1 | . . 1 Known Exits Taken 1 | . 1 . Unknown Exits Taken 1 | 1 . . Scrap Searched . | . . . Spaces Dug . | . . . Terrain Destroyed 107 | . 67 40 Melee . | . . . Projectile 1 | . . 1 AOE 106 | . 67 39 Terrain Rammed . | . . . Walls Destroyed . | . . . Machines Disabled . | . . . Actions | -11 -10 -10 --------- Run | Yrd Mat Sub Total 1289 | 69 757 463 Wait 15 | 8 5 2 Move 1146 | 45 686 415 Hop . | . . . Pick Up 25 | 10 14 1 Fast Attach . | . . . Attach 12 | 6 4 2 Detach . | . . . Swap 13 | . 4 9 Drop 9 | . 9 . Fire 67 | . 35 32 Melee 2 | . . 2 Ram . | . . . Kick . | . . . Crush . | . . . Escape Stasis . | . . . Rewire . | . . . Trap . | . . . Miscellaneous . | . . . Route ------- -11/Scrapyard -10/Materials (discovered 4 exits: *Mat x2 / *Min / *Sub) -10/Subcaves (discovered 2 exits: *Mat / [*Rec]) History --------- Turn | Location | Event 20 | -11/Scrapyard | Discovered new exit (range 15) 93 | -11/Scrapyard | Entered Materials 302 | -10/Materials | Build established: Mutant 390 | -10/Materials | Discovered new exit (range 16) 587 | -10/Materials | Discovered new exit (range 14) 730 | -10/Materials | Identified exit to Materials 893 | -10/Materials | Discovered new exit (range 11) 936 | -10/Materials | Identified exit to Subcaves 1112 | -10/Materials | Discovered new exit (range 12) 1128 | -10/Materials | Identified exit to Mines 1319 | -10/Materials | Entered Subcaves 1327 | -10/Subcaves | Shifting Twisted Machinery released Battle Cannon 1332 | -10/Subcaves | Shifting Twisted Machinery released Battle Cannon 1434 | -10/Subcaves | Discovered new exit (range 14) 1452 | -10/Subcaves | Identified exit to Materials 1463 | -10/Subcaves | Core integrity fell below 50% 1573 | -10/Subcaves | Learned location of Zion (-7) 2046 | -10/Subcaves | Discovered new exit (range 9) 2072 | -10/Subcaves | Core integrity fell below 20% 2095 | -10/Subcaves | Destroyed by Autobeam Turret with Autobeam Last Messages --------------- S-10 Pest destroyed. Flight Unit fries itself beyond repair. Acquired 19 matter. EXIT=FOUND Machine disabled. Subatomizers dissect the Lgt. Assault Rifle. Lgt. Ion Engine fries itself beyond repair. Machine disabled. Flight Unit fries itself beyond repair. Subatomizers dissect the Lgt. Assault Rifle. Imp. Treads destroyed. Subatomizers dissect the Lgt. Assault Rifle. [Achievement: Oops] Acquired 5 matter. Acquired 10 matter. Subatomizers dissect the Lgt. Assault Rifle. Autobeam Turret destroyed. Lgt. Ion Engine destroyed. Acquired 13 matter. Subatomizers dissect the Lgt. Assault Rifle. Map ----- +----------------------------------------------------+ | ## ## ### #? #?# ## ??? | | #### ## ## ???? | | #??### # ## #??????? | | ### ##????######## # #???????? | | ??##### ##????????????###### ##???????? | | ??????####???????????#####??# ###????????? | | ????????????????????## #### ##??????????? | | ????????????????????# ## ##???????????? | | ???????????????????## #????????????? | | ??????????????????## #### #?????????? | | ??????????????????# ##??### #?????????? | | ??????????????????# ##?????? ##?????????? | | ??????????????????# ### #??????????? | | ??????????????????# #??????????? | | ??????????????????# ## ###??????????? | | ??????????????????## ### #????????????? | | ???????????????????## #?#### #????????????? | | ???????????????????## #?????# ???????????? | | ??????????????????## #??????## ???????????? | | ??????????????????# ########### #???????????? | | ??????????????????# # " #? #???????????? | | ??????????????????# # #??? #????????????? | | ??????????????????# #???? #????????????? | | ??????????????????# % #??????????????????? | | ??????????????????# <#??????????????????? | | ??????????????????# " @t #??????????????????? | | ????????????????# "%# #??????????????????? | | ????????????? ##[ % "##??????????????????? | | ???????????? ##"% """#???????????????????? | | ??????????? #########???????????????????? | | ?????????? ???????????????????????????? | | ??????????? ######" ???????????????????????????? | | ????????? #?????#" ???????????????????????????? | | ???????? ?????? " ???????????????????????????? | | ?????????###??????? ? ???????????????????????????? | | ?????????????????????#???????????????????????????? | | ?????????????????????????????????????????????????? | | ?????????????????????????????????????????????????? | | ?????????????????????????????????????????????????? | | ?????????????????????????????????????????????????? | | ?????????????????????????????????????????????????? | | ?????????????????????????????????????????????????? | | ?????????????????????????????????????????????????? | | ?????????????????????????????????????????????????? | | ?????????????????????????????????????????????????? | | ?????????????????????????????????????????????????? | | ?????????????????????????????????????????????????? | | ?????????????????????????????????????????????????? | | ?????????????????????????????????????????????????? | | ?????????????????????????????????????????????????? | +----------------------------------------------------+ Best States ------------- Heat Dissipation 25 Energy Generation 10 Energy Capacity 125 Matter Stores 300 Matter Capacity 300 Sight Range 16 Terrain Scan Density 10 Evasion (%) 50 Recoil Reduction 2 Item Schematics ----------------- None Robot Schematics ------------------ None Fabricated ------------ Nothing Alien Tech Used ----------------- None Achievements -------------- Oops Challenges ------------ None Game ------ Seed WardroneBombPropulsion Manual? 0 Play Time 00:17:29 Cumulative 1.6 hours Start 2024.03.31 @ 13:40:32 End 2024.03.31 @ 13:55:59 Sessions 1 Manual Loads 0 Difficulty Rogue Special Mode None Game No. 5 Rogue 5 Adventurer 0 Explorer 0 Win Type - Total 0 Types 0/0/0/0/0/0/0/0/0 Lore% 0 Gallery% 4 Achievement% 4 Wizard Run 0 Options --------- Layout 1 ASCII 0 Keyboard 0 Movement Mouse Keybinds 0 Fullscreen 1 Font 24/Smallcaps Map View 50x35 Zoom Use 0% Tactical HUD 0 Map Filters NONE Filters NONE Steam 1 RUN: 1b19e22d-7f55-4281-a6e1-c0a4165ba269